fUST/lending_fUST_20251111
["ID","MTS","AMOUNT","RATE_DAILY","PERIOD"]
[393637617,1762870416975,270.57649191,0.00036674,60]
[393637618,1762870417677,237.51646039,0.00036674,60]
[393637619,1762870418695,179.623363,0.0001753,3]
[393637620,1762870419611,209.82096841,0.00036674,60]
[393637621,1762870426671,290.97434882,0.00036674,60]
[393637622,1762870431351,424.35552713,0.00036674,60]
[393637623,1762870433274,172.46899121,0.00036674,60]
[393637624,1762870433555,532.89905741,0.00036674,60]
[393637625,1762870435400,331.26453308,0.00036674,60]
[393637626,1762870436651,644.37388754,0.00036674,60]
[393637627,1762870437335,500.0,0.00036674,60]
[393637628,1762870437613,247.49658354,0.00036674,60]
[393637629,1762870439294,392.34143396,0.00036674,30]
[393637630,1762870441214,334.59715552,0.00036674,60]
[393637631,1762870449628,304.63939645,0.00036674,60]
[393637632,1762870449765,316.8195914,0.00036674,60]
[393637633,1762870453617,399.16977644,0.00036674,60]
[393637634,1762870454493,375.20146825,0.00036674,60]
[393637635,1762870456825,360.11962248,0.00036674,60]
[393637636,1762870457791,302.49175943,0.00036674,60]
[393637637,1762870459332,270.79473495,0.00036674,60]
[393637638,1762870469328,367.58707618,0.00036674,60]
[393637639,1762870478294,369.8361413,0.00036681,60]
[393637640,1762870478346,500.0,0.00036681,60]
[393637641,1762870478583,222.69220899,0.00036681,60]
[393637642,1762870478629,164.5112752,0.00036681,60]
[393637643,1762870484191,411.5004766,0.00036681,60]
[393637644,1762870487825,193.8506293,0.00036681,60]
[393637645,1762870495346,413.03422832,0.00036681,60]
[393637646,1762870501151,347.03,0.00036681,60]
[393637647,1762870504303,277.76185959,0.00036681,60]
[393637648,1762870504642,219.35524484,0.00036681,60]
[393637649,1762870504694,391.41983892,0.00036681,60]
[393637650,1762870506672,387.92000931,0.00036681,60]
[393637651,1762870507038,151.0,0.00036681,30]
[393637652,1762870507141,187.61266004,0.00036681,30]
[393637653,1762870507271,151.0,0.00036681,30]
[393637654,1762870507478,151.0,0.00036681,30]
[393637655,1762870507544,318.16151596,0.00036681,30]
[393637656,1762870507771,250.0,0.00036681,30]
[393637657,1762870507827,151.0,0.00036681,30]
[393637658,1762870507933,250.0,0.00036681,30]
[393637659,1762870507992,151.0,0.00036681,30]
[393637660,1762870508523,250.0,0.00036681,30]
[393637661,1762870508572,151.0,0.00036681,30]
[393637662,1762870508626,156.587,0.00036681,30]
[393637663,1762870508680,250.0,0.00036681,30]
[393637664,1762870508734,151.0,0.00036681,30]
[393637665,1762870509160,250.0,0.00036681,30]
[393637666,1762870509226,156.587,0.00036681,30]
[393637667,1762870509298,250.0,0.00036681,30]
[393637668,1762870509433,151.0,0.00036681,30]
[393637669,1762870509859,250.0,0.00036681,30]
[393637670,1762870510089,151.0,0.00036681,30]
[393637671,1762870510138,250.0,0.00036681,30]
[393637672,1762870510608,250.0,0.00036681,30]
[393637673,1762870510800,151.0,0.00036681,30]
[393637674,1762870511393,419.45833454,0.00036681,60]
[393637675,1762870511496,151.0,0.00036681,30]
[393637676,1762870511732,250.0,0.00036681,30]
[393637677,1762870512170,151.0,0.00036681,30]
[393637678,1762870512459,151.0,0.00036681,30]
[393637679,1762870512584,250.0,0.00036681,30]
[393637680,1762870512803,151.0,0.00036681,30]
[393637681,1762870513123,151.0,0.00036681,30]
[393637682,1762870513246,250.0,0.00036681,30]
[393637683,1762870513468,151.0,0.00036681,30]
[393637684,1762870513956,250.0,0.00036681,30]
[393637685,1762870514123,250.0,0.00036681,30]
[393637686,1762870514371,156.587,0.00036681,30]
[393637687,1762870514727,250.0,0.00036681,30]
[393637688,1762870514791,250.0,0.00036681,30]
[393637689,1762870515088,151.0,0.00036681,30]
[393637690,1762870515146,156.587,0.00036681,30]
[393637691,1762870515416,250.0,0.00036681,30]
[393637692,1762870515510,250.0,0.00036681,30]
[393637693,1762870515765,156.587,0.00036681,30]
[393637694,1762870515968,383.69,0.00036681,60]
[393637695,1762870516201,250.0,0.00036681,30]
[393637696,1762870516328,250.0,0.00036681,30]
[393637697,1762870516697,156.587,0.00036681,30]
[393637698,1762870516816,500.0,0.00036681,60]
[393637699,1762870516869,250.0,0.00036681,30]
[393637700,1762870517084,347.0715701,0.00036681,60]
[393637701,1762870517463,250.0,0.00036681,30]
[393637702,1762870518142,250.0,0.00036681,30]
[393637703,1762870518857,606.3562052,0.00036681,60]
[393637704,1762870519118,250.0,0.00036681,30]
[393637705,1762870519169,259.72291635,0.00036681,60]
[393637706,1762870519729,250.0,0.00036681,30]
[393637707,1762870520348,151.0,0.00036681,30]
[393637708,1762870520546,250.0,0.00036681,30]
[393637709,1762870520745,309.79441536,0.00036681,30]
[393637710,1762870521194,156.587,0.00036681,30]
[393637711,1762870521337,250.0,0.00036681,30]
[393637712,1762870521956,250.0,0.00036681,30]
[393637713,1762870522470,156.587,0.00036681,30]
[393637714,1762870522517,549.17594241,0.00036681,60]
[393637715,1762870524122,210.89925955,0.00036681,60]
[393637716,1762870527760,564.94436912,0.00036681,60]
[393637717,1762870529342,451.96854697,0.00036681,60]
[393637718,1762870529554,640.4021719,0.00036681,60]
[393637719,1762870530275,351.79845076,0.00036681,60]
[393637720,1762870532002,219.57894211,0.00036681,60]
[393637721,1762870534854,233.55675226,0.00036681,60]
[393637722,1762870535116,235.7828376,0.00036681,60]
[393637723,1762870536959,369.24083921,0.00036681,60]
[393637724,1762870539707,299.54154724,0.00036681,60]
[393637725,1762870540340,326.21772518,0.00036681,60]
[393637726,1762870543569,325.72832082,0.00036681,60]
[393637727,1762870543777,401.16,0.00036681,60]
[393637728,1762870544584,503.07730926,0.00036681,60]
[393637729,1762870546055,675.0,0.00032877,120]
[393637730,1762870546719,363.29493321,0.00036681,60]
[393637731,1762870548241,398.40043237,0.00036681,60]
[393637732,1762870549475,222.86961932,0.00036681,20]
[393637733,1762870553339,170.50332882,0.00036681,60]
[393637734,1762870554293,259.54207024,0.00036681,60]
[393637735,1762870558310,360.35515934,0.00036681,60]
[393637736,1762870560179,288.01057457,0.00036681,60]
[393637737,1762870560737,159.08610694,0.00036681,60]
[393637738,1762870570336,268.11622008,0.00036681,60]
[393637739,1762870572359,303.56238958,0.00036681,60]
[393637740,1762870579870,249.24612072,0.00036681,60]
[393637741,1762870582233,200.0,0.00036681,30]
[393637742,1762870584154,210.3783413,0.00015068,2]
[393637743,1762870584772,218.14388401,0.00036681,60]
[393637744,1762870588037,202.0,0.00032877,120]
[393637745,1762870589182,330.65982862,0.00036681,60]
[393637746,1762870593145,185.39174754,0.00036681,60]
[393637750,1762870606432,276.69041133,0.00036681,60]
[393637751,1762870609393,500.0,0.00036681,60]
[393637752,1762870609640,319.92941046,0.00036681,60]
[393637753,1762870613086,316.86547671,0.00036681,60]
[393637754,1762870614535,500.0,0.000328,120]
[393637755,1762870615958,500.0,0.00036681,60]
[393637756,1762870616180,253.30069544,0.00036681,60]
[393637757,1762870618053,328.62122656,0.00036681,60]
[393637758,1762870619489,500.0,0.00036681,60]
[393637759,1762870619776,168.23493547,0.00036681,60]
[393637760,1762870621254,193.83904043,0.00036681,60]
[393637761,1762870621570,502.2881713,0.000328,120]
[393637762,1762870629109,500.0,0.000328,120]
[393637763,1762870632001,426.8559126,0.00036681,60]
[393637764,1762870635006,315.19477595,0.00036681,60]
[393637765,1762870635087,300.0,0.0003287,120]
[393637766,1762870641327,500.0,0.000328,120]
[393637767,1762870643489,168.09844055,0.00036681,60]
[393637768,1762870645377,168.99890538,0.00036681,60]
[393637769,1762870646933,500.0,0.00036681,60]
[393637770,1762870647250,153.65686416,0.00036681,60]
[393637771,1762870652213,510.9077416,0.00036681,60]
[393637772,1762870652837,500.0,0.000328,120]
[393637773,1762870658377,400.01117232,0.00036681,60]
[393637774,1762870659037,298.91159444,0.00036681,60]
[393637775,1762870660017,362.24744619,0.00036681,60]
[393637776,1762870662580,500.0,0.000328,120]
[393637777,1762870664772,397.86606272,0.00036681,60]
[393637778,1762870665670,-620.30370623,0.00015189,2]
[393637779,1762870667353,-151.29382709,0.00015189,2]
[393637780,1762870670137,-401.51503218,0.00015189,2]
[393637781,1762870671837,-202.10826479,0.00015189,2]
[393637782,1762870672622,234.97533932,0.00036681,60]
[393637783,1762870674850,500.0,0.000328,120]
[393637784,1762870675642,436.86199076,0.00036681,60]
[393637785,1762870681718,500.0,0.00036681,60]
[393637786,1762870681959,335.69093399,0.00036681,60]
[393637787,1762870683868,500.0,0.00036681,60]
[393637788,1762870684141,249.07562195,0.00036681,60]
[393637789,1762870685428,500.0,0.00036681,60]
[393637790,1762870685588,500.0,0.00036681,60]
[393637791,1762870685676,289.28065294,0.00036681,60]
[393637792,1762870685890,327.62764848,0.00036681,60]
[393637793,1762870687720,210.49750439,0.00036681,60]
[393637794,1762870688884,358.95342438,0.00036681,60]
[393637795,1762870692875,309.61264871,0.00036681,60]
[393637796,1762870692974,613.37240091,0.00036681,60]
[393637797,1762870694880,318.9699242,0.00036681,60]
[393637798,1762870695930,405.80004582,0.00036681,60]
[393637799,1762870696487,242.26572743,0.00036681,60]
[393637800,1762870702929,358.2454,0.00036681,60]
[393637801,1762870705465,384.26352551,0.00036681,60]
[393637802,1762870711016,174.29732236,0.00036681,60]
[393637803,1762870717297,380.478842,0.00036681,60]
[393637804,1762870717638,429.93,0.000328,120]
[393637805,1762870719492,306.86910144,0.00036681,60]
[393637807,1762870723898,500.0,0.00036681,60]
[393637808,1762870724140,391.04009388,0.00036681,60]
[393637809,1762870725949,446.4732034,0.00036681,60]
[393637810,1762870727251,200.80231054,0.00036681,60]
[393637811,1762870727749,413.49255037,0.00036681,60]
[393637812,1762870727796,187.47578287,0.00036681,60]
[393637813,1762870727845,198.84764093,0.00036681,60]
[393637814,1762870728358,2248.36196207,0.00015069,2]
[393637815,1762870732516,238.59541797,0.00036681,60]
[393637816,1762870734038,170.92257846,0.00036681,60]
[393637817,1762870735818,331.88784891,0.00036681,60]
[393637818,1762870744260,297.96080747,0.00036681,60]
[393637819,1762870746877,593.76003494,0.00036681,60]
[393637820,1762870749514,528.67720697,0.00036681,60]
[393637821,1762870754486,186.29539975,0.00036681,60]
[393637822,1762870756419,222.51514088,0.00036681,60]
[393637823,1762870758297,428.52494513,0.00036681,60]
[393637824,1762870762798,321.63165193,0.00036681,60]
[393637825,1762870768028,381.73395737,0.00036681,60]
[393637826,1762870768072,173.35615031,0.00036681,60]
[393637827,1762870773797,438.85590156,0.00036681,60]
[393637828,1762870774428,276.87375052,0.00036681,60]
[393637829,1762870786717,392.20541109,0.00036684,60]
[393637830,1762870788445,500.0,0.00036684,60]
[393637831,1762870788674,257.46055491,0.00036684,60]
[393637832,1762870794654,156.25344275,0.00036684,60]
[393637833,1762870795748,286.22130991,0.00036684,60]
[393637834,1762870806901,257.90324551,0.00036684,60]
[393637835,1762870811348,250.0,0.00036684,30]
[393637836,1762870812091,250.0,0.00036684,30]
[393637837,1762870812967,250.0,0.00036684,30]
[393637838,1762870813850,250.0,0.00036684,30]
[393637839,1762870814614,250.0,0.00036684,30]
[393637840,1762870815226,250.0,0.00036684,30]
[393637841,1762870815920,250.0,0.00036684,30]
[393637842,1762870816599,250.0,0.00036684,30]
[393637843,1762870817142,204.93488016,0.00036684,60]
[393637844,1762870817191,250.0,0.00036684,30]
[393637845,1762870817867,250.0,0.00036684,30]
[393637846,1762870818482,250.0,0.00036684,30]
[393637847,1762870819171,250.0,0.00036684,30]
[393637848,1762870836279,218.81882837,0.00036684,60]
[393637849,1762870838111,329.99362612,0.00036684,60]
[393637850,1762870846123,-300.0,0.00015273,2]
[393637851,1762870848140,-181.52948483,0.00015273,2]
[393637852,1762870848166,-111.54962263,0.00015276,2]
[393637853,1762870848803,230.52805812,0.00036684,60]
[393637854,1762870852392,323.61829661,0.00036684,60]
[393637855,1762870853752,-210.98758031,0.00015189,2]
[393637856,1762870854155,207.44624363,0.00036684,60]
[393637857,1762870856436,-239.00035565,0.00015189,2]
[393637858,1762870857241,201.85976349,0.00036684,60]
[393637859,1762870858845,-160.0,0.00015189,2]
[393637860,1762870860576,187.0128318,0.00036684,60]
[393637861,1762870864302,-332.29085388,0.00015189,2]
[393637862,1762870865506,154.26575385,0.00036684,60]
[393637863,1762870865557,249.81876035,0.00036684,60]
[393637864,1762870866512,-196.93295658,0.00015188,2]
[393637865,1762870868828,-103.06704342,0.00015188,2]
[393637866,1762870868861,-64.6421027,0.00015189,2]
[393637867,1762870872175,-269.10421908,0.00015189,2]
[393637868,1762870874483,-237.79140659,0.00015189,2]
[393637869,1762870876414,271.42890084,0.00036684,60]
[393637870,1762870876911,222.18877825,0.00036684,60]
[393637871,1762870878656,-340.21545957,0.00015189,2]
[393637872,1762870881297,-201.75386583,0.00015189,2]
[393637873,1762870882087,200.0,0.00036684,30]
[393637874,1762870883572,6687.844018,0.00014287,2]
[393637875,1762870884055,-367.02458198,0.00015189,2]
[393637876,1762870887995,-380.21079937,0.00015189,2]
[393637877,1762870891141,-249.67374967,0.00015189,2]
[393637878,1762870891364,353.80798272,0.00036684,60]
[393637879,1762870894907,-230.89578092,0.00015189,2]
[393637880,1762870896121,200.42584857,0.00036684,60]
[393637881,1762870896665,-299.30753702,0.00015189,2]
[393637882,1762870898743,-468.62095367,0.00015189,2]
[393637883,1762870900652,-348.06546832,0.00015189,2]
[393637884,1762870901602,241.92308302,0.00036684,60]
[393637885,1762870903099,184.48381948,0.00014885,2]
[393637886,1762870903233,-276.97874025,0.00015189,2]
[393637887,1762870905405,452.71749945,0.00036684,60]
[393637888,1762870907055,228.99289626,0.00036684,60]
[393637889,1762870908616,-254.18142804,0.00015189,2]
[393637890,1762870910575,-160.81857196,0.00015189,2]
[393637891,1762870914002,345.50368655,0.00036684,60]
[393637892,1762870914153,-208.61782145,0.00015189,2]
[393637893,1762870916178,-312.77351553,0.00015189,2]
[393637894,1762870917998,-277.96177954,0.00015189,2]
[393637895,1762870920056,-461.13114303,0.00015189,2]
[393637896,1762870923149,-250.63998889,0.00015188,2]
[393637897,1762870924745,-49.36001111,0.00015188,2]
[393637898,1762870924772,-203.01888007,0.00015189,2]
[393637899,1762870927048,-672.65105332,0.00015189,2]
[393637900,1762870928675,-360.61263623,0.00015189,2]
[393637901,1762870931471,311.74133226,0.00036684,60]
[393637902,1762870936424,182.33493291,0.00036684,60]
[393637903,1762870938018,-769411.66971602,0.00015189,2]
[393637904,1762870938041,-40.44862356,0.00015276,2]
[393637905,1762870938063,-488.0,0.00015285,2]
[393637906,1762870938086,-415.81162149,0.00015285,2]
[393637907,1762870938117,-500.0,0.00015285,2]
[393637908,1762870938143,-500.0,0.00015285,2]
[393637909,1762870938164,-500.0,0.00015285,2]
[393637910,1762870938185,-500.0,0.00015285,2]
[393637911,1762870938210,-500.0,0.00015285,2]
[393637912,1762870938231,-323.03009228,0.00015285,2]
[393637913,1762870938253,-500.0,0.00015285,2]
[393637914,1762870938280,-500.0,0.00015285,2]
[393637915,1762870938304,-500.0,0.00015285,2]
[393637916,1762870938329,-500.0,0.00015285,2]
[393637917,1762870938355,-500.0,0.00015285,2]
[393637918,1762870938380,-500.0,0.00015285,2]
[393637919,1762870938406,-361.7938176,0.00015285,2]
[393637920,1762870938434,-500.0,0.00015285,2]
[393637921,1762870938458,-500.0,0.00015285,2]
[393637922,1762870938482,-500.0,0.00015285,2]
[393637923,1762870938508,-500.0,0.00015285,2]
[393637924,1762870938532,-500.0,0.00015285,2]
[393637925,1762870938556,-500.0,0.00015285,2]
[393637926,1762870938580,-500.0,0.00015285,2]
[393637927,1762870938607,-500.0,0.00015285,2]
[393637928,1762870938631,-500.0,0.00015285,2]
[393637929,1762870938658,-500.0,0.00015285,2]
[393637930,1762870938685,-500.0,0.00015285,2]
[393637931,1762870938710,-500.0,0.00015285,2]
[393637932,1762870938737,-500.0,0.00015285,2]
[393637933,1762870938762,-500.0,0.00015285,2]
[393637934,1762870938787,-500.0,0.00015285,2]
[393637935,1762870938812,-500.0,0.00015285,2]
[393637936,1762870938843,-500.0,0.00015285,2]
[393637937,1762870938866,-303.06704342,0.00015285,2]
[393637938,1762870938889,-500.0,0.00015285,2]
[393637939,1762870938910,-500.0,0.00015285,2]
[393637940,1762870938943,-196.93295658,0.00015285,2]
[393637941,1762870938967,-500.0,0.00015285,2]
[393637942,1762870938991,-500.0,0.00015285,2]
[393637943,1762870939016,-500.0,0.00015285,2]
[393637944,1762870939042,-500.0,0.00015285,2]
[393637945,1762870939070,-500.0,0.00015285,2]
[393637946,1762870939093,-500.0,0.00015285,2]
[393637947,1762870939116,-500.0,0.00015285,2]
[393637948,1762870939139,-500.0,0.00015285,2]
[393637949,1762870939163,-500.0,0.00015285,2]
[393637950,1762870939187,-317.94369741,0.00015285,2]
[393637951,1762870939211,-500.0,0.00015285,2]
[393637952,1762870939234,-500.0,0.00015285,2]
[393637953,1762870939258,-500.0,0.00015285,2]
[393637954,1762870939282,-500.0,0.00015285,2]
[393637955,1762870939306,-500.0,0.00015285,2]
[393637956,1762870939335,-469.10421908,0.00015285,2]
[393637957,1762870939367,-500.0,0.00015285,2]
[393637958,1762870939392,-500.0,0.00015285,2]
[393637959,1762870939417,-500.0,0.00015285,2]
[393637960,1762870939442,-500.0,0.00015285,2]
[393637961,1762870939464,-500.0,0.00015285,2]
[393637962,1762870939488,-500.0,0.00015285,2]
[393637963,1762870939512,-500.0,0.00015285,2]
[393637964,1762870939536,-500.0,0.00015285,2]
[393637965,1762870939559,-500.0,0.00015285,2]
[393637966,1762870939582,-500.0,0.00015285,2]
[393637967,1762870939604,-500.0,0.00015285,2]
[393637968,1762870939626,-500.0,0.00015285,2]
[393637969,1762870939650,-386.40520314,0.00015285,2]
[393637970,1762870939673,-500.0,0.00015285,2]
[393637971,1762870939697,-500.0,0.00015285,2]
[393637972,1762870939721,-500.0,0.00015285,2]
[393637973,1762870939746,-500.0,0.00015285,2]
[393637974,1762870939769,-500.0,0.00015285,2]
[393637975,1762870939794,-500.0,0.00015285,2]
[393637976,1762870939819,-201.75386583,0.00015285,2]
[393637977,1762870939844,-611.75114706,0.00015285,2]
[393637978,1762870939867,-500.0,0.00015285,2]
[393637979,1762870939890,-207.8914152,0.00015285,2]
[393637980,1762870939915,-298.24613417,0.00015285,2]
[393637981,1762870940035,-230.89578092,0.00015285,2]
[393637982,1762870940063,-500.0,0.00015286,2]
[393637983,1762870940086,-500.0,0.00015286,2]
[393637984,1762870940109,-500.0,0.00015286,2]
[393637985,1762870940131,-500.0,0.00015286,2]
[393637986,1762870940158,-500.0,0.00015286,2]
[393637987,1762870940181,-500.0,0.00015286,2]
[393637988,1762870940203,-500.0,0.00015286,2]
[393637989,1762870940226,-439.54181588,0.00015286,2]
[393637990,1762870940252,-500.0,0.00015286,2]
[393637991,1762870940276,-500.0,0.00015286,2]
[393637992,1762870940298,-500.0,0.00015286,2]
[393637993,1762870940324,-500.0,0.00015286,2]
[393637994,1762870940351,-500.0,0.00015286,2]
[393637995,1762870940375,-500.0,0.00015286,2]
[393637996,1762870940397,-500.0,0.00015286,2]
[393637997,1762870940426,-500.0,0.00015286,2]
[393637998,1762870940448,-500.0,0.00015286,2]
[393637999,1762870940470,-500.0,0.00015286,2]
[393638000,1762870940497,-397.10535873,0.00015286,2]
[393638001,1762870940520,-532.60078548,0.00015286,2]
[393638002,1762870940542,-500.0,0.00015286,2]
[393638003,1762870940563,-500.0,0.00015286,2]
[393638004,1762870940587,-500.0,0.00015286,2]
[393638005,1762870940608,-698.38,0.00015289,2]
[393638006,1762870940630,-698.38,0.00015289,2]
[393638007,1762870940652,-698.38,0.00015289,2]
[393638008,1762870940675,-698.38,0.00015289,2]
[393638009,1762870940696,-698.38,0.00015289,2]
[393638010,1762870940718,-698.38,0.00015289,2]
[393638011,1762870940741,-698.38,0.00015289,2]
[393638012,1762870940762,-698.38,0.00015289,2]
[393638013,1762870940784,-698.38,0.00015289,2]
[393638014,1762870940805,-698.38,0.00015289,2]
[393638015,1762870940826,-698.38,0.00015289,2]
[393638016,1762870940848,-698.38,0.00015289,2]
[393638017,1762870940870,-698.38,0.00015289,2]
[393638018,1762870940893,-698.38,0.00015289,2]
[393638019,1762870940915,-698.38,0.00015289,2]
[393638020,1762870940939,-698.38,0.00015289,2]
[393638021,1762870940960,-698.38,0.00015289,2]
[393638022,1762870940981,-698.38,0.00015289,2]
[393638023,1762870941004,-698.38,0.00015289,2]
[393638024,1762870941025,-698.38,0.00015289,2]
[393638025,1762870941047,-698.38,0.00015289,2]
[393638026,1762870941069,-698.38,0.00015289,2]
[393638027,1762870941091,-698.38,0.00015289,2]
[393638028,1762870941112,-698.4157261,0.00015289,2]
[393638029,1762870941134,-276.59049933,0.00015289,2]
[393638030,1762870941161,-180.34,0.0001529,2]
[393638031,1762870941185,-180.4,0.000153,2]
[393638032,1762870941208,-180.4,0.000153,2]
[393638033,1762870941230,-500.0,0.00015373,2]
[393638034,1762870941256,-1235.1489293,0.00015377,2]
[393638035,1762870941280,-38340.1070006,0.00015383,2]
[393638036,1762870941303,-500.0,0.00015389,2]
[393638037,1762870941326,-500.0,0.00015389,2]
[393638038,1762870941353,-500.0,0.00015389,2]
[393638039,1762870941374,-500.0,0.00015389,2]
[393638040,1762870941396,-500.0,0.00015389,2]
[393638041,1762870941418,-500.0,0.00015389,2]
[393638042,1762870941439,-500.0,0.00015389,2]
[393638043,1762870941460,-639.27268664,0.00015389,2]
[393638044,1762870941483,-180.4,0.000154,2]
[393638045,1762870941509,-180.4,0.000154,2]
[393638046,1762870941532,-180.4,0.000154,2]
[393638047,1762870941554,-180.4,0.000154,2]
[393638048,1762870941576,-2233.4530616,0.00015478,2]
[393638049,1762870941598,-180.4,0.000155,2]
[393638050,1762870941621,-180.4,0.000155,2]
[393638051,1762870941644,-180.4,0.000155,2]
[393638052,1762870941666,-714.29,0.00015583,2]
[393638053,1762870941688,-714.29,0.00015589,2]
[393638054,1762870941709,-714.29,0.00015589,2]
[393638055,1762870941731,-714.29,0.00015589,2]
[393638056,1762870941754,-714.29,0.00015589,2]
[393638057,1762870941776,-714.29,0.00015589,2]
[393638058,1762870941798,-714.29,0.00015589,2]
[393638059,1762870941819,-714.29,0.00015589,2]
[393638060,1762870941841,-714.29,0.00015589,2]
[393638061,1762870941865,-714.29,0.00015589,2]
[393638062,1762870941887,-714.29,0.00015589,2]
[393638063,1762870941909,-714.29,0.00015589,2]
[393638064,1762870941930,-714.29,0.00015589,2]
[393638065,1762870941952,-714.29,0.00015589,2]
[393638066,1762870941974,-714.29,0.00015589,2]
[393638067,1762870941998,-714.29,0.00015589,2]
[393638068,1762870942019,-714.29,0.00015589,2]
[393638069,1762870942042,-714.29,0.00015589,2]
[393638070,1762870942064,-714.29,0.00015589,2]
[393638071,1762870942087,-714.29,0.00015589,2]
[393638072,1762870942109,-714.29,0.00015589,2]
[393638073,1762870942130,-714.29,0.00015589,2]
[393638074,1762870942153,-714.29,0.00015589,2]
[393638075,1762870942174,-714.44533559,0.00015589,2]
[393638076,1762870942195,-5469.57,0.00015589,2]
[393638077,1762870942218,-180.4,0.000156,2]
[393638078,1762870942241,-180.4,0.000156,2]
[393638079,1762870942264,-180.4,0.000156,2]
[393638080,1762870942288,-300.0,0.00015696,2]
[393638081,1762870942312,-300.0,0.00015696,2]
[393638082,1762870942339,-300.0,0.00015696,2]
[393638083,1762870942365,-300.0,0.00015696,2]
[393638084,1762870942388,-300.0,0.00015696,2]
[393638085,1762870942414,-300.0,0.00015696,2]
[393638086,1762870942440,-300.0,0.00015696,2]
[393638087,1762870942464,-300.0,0.00015696,2]
[393638088,1762870942488,-300.0,0.00015696,2]
[393638089,1762870942513,-300.0,0.00015696,2]
[393638090,1762870942537,-300.0,0.00015696,2]
[393638091,1762870942561,-300.0,0.00015696,2]
[393638092,1762870942585,-300.0,0.00015696,2]
[393638093,1762870942608,-300.0,0.00015696,2]
[393638094,1762870942633,-300.0,0.00015696,2]
[393638095,1762870942657,-600.0,0.00015697,2]
[393638096,1762870942779,-180.4,0.000157,2]
[393638097,1762870942804,-180.4,0.000157,2]
[393638098,1762870942828,-180.4,0.000157,2]
[393638099,1762870942851,-180.4,0.000158,2]
[393638100,1762870942875,-180.4,0.000158,2]
[393638101,1762870942903,-180.4,0.000158,2]
[393638102,1762870942924,-316.0,0.00015845,2]
[393638103,1762870942948,-180.4,0.000159,2]
[393638104,1762870942970,-180.4,0.000159,2]
[393638105,1762870942993,-180.4,0.000159,2]
[393638106,1762870943016,-180.4,0.000159,2]
[393638107,1762870943037,-1005.31638174,0.00015921,2]
[393638108,1762870943061,-180.4,0.00016,2]
[393638109,1762870943085,-180.4,0.00016,2]
[393638110,1762870943110,-180.4,0.00016,2]
[393638111,1762870943167,445.84934669,0.00036684,60]
[393638112,1762870943215,353.50544554,0.00036684,60]
[393638113,1762870948980,400.05237427,0.00036684,20]
[393638114,1762870951870,287.53858029,0.00036684,60]
[393638115,1762870960666,10000.0,0.00032877,120]
[393638116,1762870965688,-282.72938194,0.00015189,2]
[393638117,1762870965775,200.0,0.00036684,60]
[393638118,1762870966015,200.0,0.00036684,60]
[393638119,1762870966248,200.0,0.00036684,60]
[393638120,1762870966504,200.0,0.00036684,60]